fUSD/lending_fUSD_20240607
["ID","MTS","AMOUNT","RATE_DAILY","PERIOD"]
[328753905,1717768239246,-500.0,0.00029863,4]
[328753906,1717768239257,-500.0,0.00029863,4]
[328753907,1717768239267,-511.94334714,0.00029863,4]
[328753908,1717768239278,-558.75,0.00029863,4]
[328753909,1717768239289,-500.0,0.00029863,4]
[328753910,1717768239299,-500.0,0.00029863,4]
[328753911,1717768239310,-500.0,0.00029863,4]
[328753912,1717768239321,-500.0,0.00029863,4]
[328753913,1717768239331,-500.0,0.00029863,4]
[328753914,1717768239342,-500.0,0.00029863,4]
[328753915,1717768239353,-463.22190618,0.00029863,4]
[328753916,1717768239363,-500.0,0.00029863,4]
[328753917,1717768239374,-500.0,0.00029863,4]
[328753918,1717768239384,-500.0,0.00029863,4]
[328753919,1717768239394,-500.0,0.00029863,4]
[328753920,1717768239405,-500.0,0.00029863,4]
[328753921,1717768239416,-514.07455435,0.00029863,4]
[328753922,1717768239427,-301.40004336,0.00029863,4]
[328753923,1717768239442,-198.59995664,0.00029863,4]
[328753924,1717768239452,-500.0,0.00029863,4]
[328753925,1717768239463,-523.28761461,0.00029863,4]
[328753926,1717768239474,-500.0,0.00029863,4]
[328753927,1717768239484,-500.0,0.00029863,4]
[328753928,1717768239495,-500.0,0.00029863,4]
[328753929,1717768239505,-265.67537508,0.00029863,4]
[328753930,1717768239519,-234.32462492,0.00029863,4]
[328753931,1717768239530,-569.58526305,0.00029863,4]
[328753932,1717768239541,-126.85287573,0.00029863,4]
[328753933,1717768239554,-373.14712427,0.00029863,4]
[328753934,1717768239566,-500.0,0.00029863,4]
[328753935,1717768239576,-500.0,0.00029863,4]
[328753936,1717768239586,-547.27235819,0.00029863,4]
[328753937,1717768239596,-430.36022653,0.00029863,4]
[328753938,1717768239607,-500.0,0.00029863,4]
[328753939,1717768239617,-500.0,0.00029863,4]
[328753940,1717768239627,-500.0,0.00029863,4]
[328753941,1717768239638,-500.0,0.00029863,4]
[328753942,1717768239648,-500.0,0.00029863,4]
[328753943,1717768239658,-511.69646661,0.00029863,4]
[328753944,1717768239668,-500.0,0.00029863,4]
[328753945,1717768239679,-500.0,0.00029863,4]
[328753946,1717768239689,-356.89438235,0.00029863,4]
[328753947,1717768239701,-143.10561765,0.00029863,4]
[328753948,1717768239713,-190.79438235,0.00029863,4]
[328753949,1717768239751,-325.13011442,0.00029863,4]
[328753950,1717768239762,-235.43280927,0.00029863,4]
[328753951,1717768239774,-264.56719073,0.00029863,4]
[328753952,1717768239784,-511.53944866,0.00029863,4]
[328753953,1717768239795,-500.0,0.00029863,4]
[328753954,1717768239805,-500.0,0.00029863,4]
[328753955,1717768239816,-500.0,0.00029863,4]
[328753956,1717768239827,-500.0,0.00029863,4]
[328753957,1717768239838,-500.0,0.00029863,4]
[328753958,1717768239848,-528.7692854,0.00029863,4]
[328753959,1717768239859,-500.0,0.00029863,4]
[328753960,1717768239869,-366.54,0.00029863,4]
[328753961,1717768239880,-512.68529899,0.00029863,4]
[328753962,1717768239890,-500.0,0.00029863,4]
[328753963,1717768239900,-500.0,0.00029863,4]
[328753964,1717768239910,-500.0,0.00029863,4]
[328753965,1717768239920,-512.27324447,0.00029863,4]
[328753966,1717768239930,-500.0,0.00029863,4]
[328753967,1717768239941,-159.50479571,0.00029863,4]
[328753968,1717768239954,-340.49520429,0.00029863,4]
[328753969,1717768239966,-217.73409276,0.00029863,4]
[328753970,1717768240188,-282.26590724,0.00029863,4]
[328753971,1717768240199,-500.0,0.00029863,4]
[328753972,1717768240210,-500.0,0.00029863,4]
[328753973,1717768240221,-500.0,0.00029863,4]
[328753974,1717768240232,-500.0,0.00029863,4]
[328753975,1717768240242,-500.0,0.00029863,4]
[328753976,1717768240253,-213.17589348,0.00029863,4]
[328753977,1717768240263,-512.39950543,0.00029863,4]
[328753978,1717768240274,-404.85869386,0.00029863,4]
[328753979,1717768242642,-159.59,0.00028112,2]
[328753980,1717768242652,-95.14130614,0.00029863,4]
[328753981,1717768242663,-500.0,0.00029863,4]
[328753982,1717768242674,-521.03136984,0.00029863,4]
[328753983,1717768242684,-500.0,0.00029863,4]
[328753984,1717768242694,-500.0,0.00029863,4]
[328753985,1717768242704,-500.0,0.00029863,4]
[328753986,1717768242716,-500.0,0.00029863,4]
[328753987,1717768242726,-500.0,0.00029863,4]
[328753988,1717768242736,-242.40195222,0.00029863,4]
[328753989,1717768242746,-500.0,0.00029863,4]
[328753990,1717768242756,-500.0,0.00029863,4]
[328753991,1717768242766,-500.0,0.00029863,4]
[328753992,1717768242778,-500.0,0.00029863,4]
[328753993,1717768242788,-500.0,0.00029863,4]
[328753994,1717768242797,-500.0,0.00029863,4]
[328753995,1717768242807,-469.82691589,0.00029863,4]
[328753996,1717768242820,-30.17308411,0.00029863,4]
[328753997,1717768242830,-500.0,0.00029863,4]
[328753998,1717768242840,-125.96691589,0.00029863,4]
[328753999,1717768242853,-374.03308411,0.00029863,4]
[328754000,1717768242862,-487.00789933,0.00029863,4]
[328754001,1717768242875,-12.99210067,0.00029863,4]
[328754002,1717768242885,-498.82239371,0.00029863,4]
[328754003,1717768242964,-1.17760629,0.00029863,4]
[328754004,1717768242974,-376.62739373,0.00029863,4]
[328754005,1717768242986,-123.37260627,0.00029863,4]
[328754006,1717768242996,-500.0,0.00029863,4]
[328754007,1717768243011,-500.0,0.00029863,4]
[328754010,1717768243021,-508.09942469,0.00029863,4]
[328754012,1717768243030,-500.0,0.00029863,4]
[328754014,1717768243040,-363.70543078,0.00029863,4]
[328754016,1717768243050,-500.0,0.00029863,4]
[328754018,1717768243060,-500.0,0.00029863,4]
[328754020,1717768243070,-500.0,0.00029863,4]
[328754022,1717768243082,-500.0,0.00029863,4]
[328754024,1717768243095,-134.73806744,0.00029863,4]
[328754026,1717768243107,-365.26193256,0.00029863,4]
[328754028,1717768243117,-500.0,0.00029863,4]
[328754030,1717768243127,-513.82833353,0.00029863,4]
[328754032,1717768243138,-512.09069369,0.00029863,4]
[328754034,1717768243148,-500.0,0.00029863,4]
[328754036,1717768243158,-500.0,0.00029863,4]
[328754039,1717768243170,-500.0,0.00029863,4]
[328754040,1717768243182,-512.21271792,0.00029863,4]
[328754042,1717768243192,-529.55452236,0.00029863,4]
[328754045,1717768243202,-353.25723799,0.00029863,4]
[328754047,1717768243219,-327.48276201,0.00029863,4]
[328754051,1717768243228,-680.74,0.00029863,4]
[328754056,1717768243239,-178.58053481,0.00029863,4]
[328754062,1717768243249,-500.0,0.00029863,4]
[328754066,1717768243259,-500.0,0.00029863,4]
[328754069,1717768243270,-500.0,0.00029863,4]
[328754072,1717768243280,-500.0,0.00029863,4]
[328754076,1717768243290,-500.0,0.00029863,4]
[328754078,1717768243300,-500.0,0.00029863,4]
[328754082,1717768243311,-500.0,0.00029863,4]
[328754085,1717768243320,-500.0,0.00029863,4]
[328754087,1717768243330,-527.00346735,0.00029863,4]
[328754089,1717768243340,-519.92930425,0.00029863,4]
[328754092,1717768243350,-590.15844111,0.00029863,4]
[328754095,1717768243360,-32.61502047,0.00029863,4]
[328754099,1717768243373,-434.48,0.00029863,4]
[328754102,1717768243386,-70.05502797,0.00029863,4]
[328754105,1717768243395,-500.0,0.00029863,4]
[328754108,1717768243405,-500.0,0.00029863,4]
[328754110,1717768243415,-197.91491708,0.00029863,4]
[328754112,1717768243424,-500.0,0.00029863,4]
[328754114,1717768243434,-500.0,0.00029863,4]
[328754116,1717768243444,-552.99117549,0.00029863,4]
[328754118,1717768243453,-88.72935519,0.00029863,4]
[328754120,1717768243467,-411.27064481,0.00029863,4]
[328754122,1717768243477,-500.0,0.00029863,4]
[328754124,1717768243487,-500.0,0.00029863,4]
[328754126,1717768243497,-114.97633566,0.00029863,4]
[328754132,1717768243539,-410.51924036,0.00029863,4]
[328754133,1717768243548,-500.0,0.00029863,4]
[328754135,1717768243559,-500.0,0.00029863,4]
[328754137,1717768243570,-500.0,0.00029863,4]
[328754139,1717768243579,-353.71387949,0.00029863,4]
[328754141,1717768243589,-500.0,0.00029863,4]
[328754143,1717768243598,-500.0,0.00029863,4]
[328754145,1717768243608,-500.0,0.00029863,4]
[328754147,1717768243617,-510.75066197,0.00029863,4]
[328754149,1717768243627,-390.62209663,0.00029863,4]
[328754151,1717768243638,-464.98790337,0.00029863,4]
[328754152,1717768243648,-500.0,0.00029863,4]
[328754153,1717768243657,-855.61,0.00029863,4]
[328754154,1717768243667,-516.00383718,0.00029863,4]
[328754155,1717768243676,-500.0,0.00029863,4]
[328754156,1717768243686,-426.07948214,0.00029863,4]
[328754158,1717768245389,-85.6224077,0.00029863,4]
[328754159,1717768245399,-500.0,0.00029863,4]
[328754160,1717768245408,-520.65425478,0.00029863,4]
[328754161,1717768245418,-500.0,0.00029863,4]
[328754162,1717768245428,-528.55822396,0.00029863,4]
[328754163,1717768245437,-500.0,0.00029863,4]
[328754164,1717768245447,-294.08440041,0.00029863,4]
[328754165,1717768245457,-500.0,0.00029863,4]
[328754166,1717768245468,-500.0,0.00029863,4]
[328754167,1717768245477,-530.89427781,0.00029863,4]
[328754168,1717768245487,-500.0,0.00029863,4]
[328754169,1717768245503,-500.0,0.00029863,4]
[328754170,1717768245512,-500.0,0.00029863,4]
[328754171,1717768245522,-34.95539884,0.00029863,4]
[328754172,1717768245534,-465.04460116,0.00029863,4]
[328754173,1717768245543,-392.33383217,0.00029863,4]
[328754174,1717768245553,-500.0,0.00029863,4]
[328754175,1717768245562,-522.85285591,0.00029863,4]
[328754176,1717768245572,-523.76780892,0.00029863,4]
[328754177,1717768245583,-500.0,0.00029863,4]
[328754178,1717768245592,-500.0,0.00029863,4]
[328754179,1717768245602,-500.0,0.00029863,4]
[328754180,1717768245611,-500.0,0.00029863,4]
[328754181,1717768245620,-500.0,0.00029863,4]
[328754182,1717768245630,-500.0,0.00029863,4]
[328754183,1717768245639,-500.0,0.00029863,4]
[328754184,1717768245648,-500.0,0.00029863,4]
[328754185,1717768245658,-500.0,0.00029863,4]
[328754186,1717768245667,-500.0,0.00029863,4]
[328754187,1717768245676,-500.0,0.00029863,4]
[328754188,1717768245686,-500.0,0.00029863,4]
[328754189,1717768245696,-507.22,0.00029863,4]
[328754190,1717768245705,-500.0,0.00029863,4]
[328754191,1717768245715,-500.0,0.00029863,4]
[328754192,1717768245725,-500.0,0.00029863,4]
[328754193,1717768245736,-500.0,0.00029863,4]
[328754194,1717768245746,-500.0,0.00029863,4]
[328754195,1717768245756,-500.0,0.00029863,4]
[328754196,1717768245767,-500.0,0.00029863,4]
[328754197,1717768245777,-500.0,0.00029863,4]
[328754198,1717768245786,-500.0,0.00029863,4]
[328754199,1717768245797,-500.0,0.00029863,4]
[328754200,1717768245807,-500.0,0.00029863,4]
[328754201,1717768245817,-500.0,0.00029863,4]
[328754202,1717768245827,-500.0,0.00029863,4]
[328754203,1717768245836,-1366.97,0.00029863,4]
[328754204,1717768245846,-1366.97,0.00029863,4]
[328754205,1717768245855,-312.03177481,0.00029863,4]
[328754206,1717768245865,-500.0,0.00029863,4]
[328754207,1717768245874,-500.0,0.00029863,4]
[328754208,1717768245884,-500.0,0.00029863,4]
[328754209,1717768245894,-500.0,0.00029863,4]
[328754210,1717768245904,-500.0,0.00029863,4]
[328754211,1717768245913,-500.0,0.00029863,4]
[328754212,1717768245923,-500.0,0.00029863,4]
[328754213,1717768245932,-169.14683134,0.00029863,4]
[328754215,1717768245941,-500.0,0.00029863,4]
[328754216,1717768245951,-500.0,0.00029863,4]
[328754218,1717768245961,-500.0,0.00029863,4]
[328754220,1717768245971,-500.0,0.00029863,4]
[328754222,1717768245981,-500.0,0.00029863,4]
[328754224,1717768245991,-500.0,0.00029863,4]
[328754226,1717768246001,-500.0,0.00029863,4]
[328754228,1717768246014,-500.0,0.00029863,4]
[328754230,1717768246024,-2186.04,0.00029863,4]
[328754231,1717768246034,-2186.04,0.00029863,4]
[328754233,1717768246044,-500.0,0.00029863,4]
[328754235,1717768246054,-500.0,0.00029863,4]
[328754236,1717768246063,-500.0,0.00029863,4]
[328754237,1717768246073,-500.0,0.00029863,4]
[328754238,1717768246083,-500.0,0.00029863,4]
[328754239,1717768246095,-500.0,0.00029863,4]
[328754240,1717768246105,-500.0,0.00029863,4]
[328754241,1717768246116,-305.64695598,0.00029863,4]
[328754242,1717768246125,-500.0,0.00029863,4]
[328754243,1717768246135,-500.0,0.00029863,4]
[328754244,1717768246144,-500.0,0.00029863,4]
[328754245,1717768246153,-500.0,0.00029863,4]
[328754246,1717768246164,-500.0,0.00029863,4]
[328754247,1717768246174,-500.0,0.00029863,4]
[328754248,1717768246185,-500.0,0.00029863,4]
[328754249,1717768246194,-500.0,0.00029863,4]
[328754250,1717768246204,-500.0,0.00029863,4]
[328754251,1717768246214,-500.0,0.00029863,4]
[328754252,1717768246256,-500.0,0.00029863,4]
[328754253,1717768246267,-500.0,0.00029863,4]
[328754254,1717768246277,-500.0,0.00029863,4]
[328754255,1717768246287,-500.0,0.00029863,4]
[328754256,1717768246296,-500.0,0.00029863,4]
[328754257,1717768246306,-500.0,0.00029863,4]
[328754258,1717768246316,-500.0,0.00029863,4]
[328754259,1717768246326,-500.0,0.00029863,4]
[328754260,1717768246336,-500.0,0.00029863,4]
[328754261,1717768246345,-500.0,0.00029863,4]
[328754262,1717768246354,-500.0,0.00029863,4]
[328754263,1717768246363,-500.0,0.00029863,4]
[328754264,1717768246373,-500.0,0.00029863,4]
[328754265,1717768246382,-500.0,0.00029863,4]
[328754266,1717768246392,-500.0,0.00029863,4]
[328754267,1717768246401,-500.0,0.00029863,4]
[328754268,1717768246411,-500.0,0.00029863,4]
[328754269,1717768246419,-500.0,0.00029863,4]
[328754270,1717768246429,-500.0,0.00029863,4]
[328754271,1717768246438,-500.0,0.00029863,4]
[328754272,1717768246447,-500.0,0.00029863,4]
[328754273,1717768246457,-624.86961018,0.00029863,4]
[328754274,1717768246468,-500.0,0.00029863,4]
[328754275,1717768246477,-500.0,0.00029863,4]
[328754276,1717768246487,-512.86,0.00029863,4]
[328754277,1717768246496,-500.0,0.00029863,4]
[328754278,1717768246505,-500.0,0.00029863,4]
[328754279,1717768246515,-500.0,0.00029863,4]
[328754280,1717768246524,-500.0,0.00029863,4]
[328754281,1717768246534,-500.0,0.00029863,4]
[328754282,1717768246543,-500.0,0.00029863,4]
[328754283,1717768246553,-500.0,0.00029863,4]
[328754284,1717768246563,-500.0,0.00029863,4]
[328754285,1717768246572,-500.0,0.00029863,4]
[328754286,1717768246582,-383.96300971,0.00029863,4]
[328754287,1717768246592,-500.0,0.00029863,4]
[328754288,1717768246602,-500.0,0.00029863,4]
[328754289,1717768246612,-500.0,0.00029863,4]
[328754290,1717768246621,-500.0,0.00029863,4]
[328754291,1717768246632,-500.0,0.00029863,4]
[328754292,1717768246643,-541.69288664,0.00029863,4]
[328754293,1717768246653,-500.0,0.00029863,4]
[328754294,1717768246663,-189.27280631,0.00029865,2]
[328754295,1717768246673,-150.99802264,0.00029877,2]
[328754296,1717768246682,-156.02640146,0.00029877,2]
[328754297,1717768246692,-215.86454242,0.00029898,2]
[328754298,1717768246701,-798.72077277,0.00029898,2]
[328754299,1717768246711,-8592.9129,0.00029898,2]
[328754300,1717768246720,-798.72077273,0.00029898,2]
[328754301,1717768246729,-798.72077273,0.00029898,2]
[328754302,1717768246738,-798.72077273,0.00029899,2]
[328754303,1717768246747,-798.72077273,0.00029899,2]
[328754304,1717768246757,-798.72077273,0.00029899,2]
[328754305,1717768246766,-500.0,0.00029899,4]
[328754306,1717768246775,-500.0,0.00029899,4]
[328754307,1717768246784,-798.72077273,0.00029899,2]
[328754308,1717768246794,-798.72077273,0.00029899,2]
[328754309,1717768246803,-798.72077273,0.00029899,2]
[328754310,1717768246813,-798.72077273,0.000299,2]
[328754311,1717768246824,-7497.0688,0.000299,2]
[328754312,1717768246833,-798.72077273,0.000299,2]
[328754313,1717768246842,-185.93691833,0.000299,2]
[328754314,1717768246851,-176.84965762,0.000299,2]
[328754315,1717768246861,-185.85360672,0.000299,15]
[328754316,1717768246873,-652.62743939,0.000299,7]
[328754317,1717768246882,-652.62743939,0.000299,7]
[328754318,1717768246891,-652.62743939,0.000299,7]
[328754319,1717768246901,-652.62743939,0.000299,7]
[328754320,1717768246910,-652.62743939,0.000299,7]
[328754321,1717768246920,-652.62743939,0.000299,7]
[328754322,1717768246929,-652.62743939,0.000299,7]
[328754323,1717768246940,-652.62743939,0.000299,7]
[328754324,1717768246949,-652.62743939,0.000299,7]
[328754325,1717768246959,-652.62743939,0.000299,7]
[328754326,1717768246970,-652.62743939,0.000299,7]
[328754327,1717768246980,-652.62743939,0.000299,7]
[328754328,1717768246990,-652.62743939,0.000299,7]
[328754329,1717768247002,-652.62743939,0.000299,7]
[328754330,1717768247014,-652.62743939,0.000299,7]
[328754331,1717768247024,-652.62743939,0.000299,7]
[328754332,1717768247033,-652.62743939,0.000299,7]
[328754333,1717768247043,-652.62743939,0.000299,7]
[328754334,1717768247054,-652.62743939,0.000299,7]
[328754335,1717768247063,-653.12,0.000299,7]
[328754336,1717768247073,-2610.58475758,0.000299,7]
[328754337,1717768247083,-2610.58475758,0.000299,7]
[328754338,1717768247093,-2610.58475758,0.000299,7]
[328754339,1717768247103,-2610.58475758,0.000299,7]
[328754340,1717768247112,-2610.58475758,0.000299,7]
[328754341,1717768247121,-2610.58475758,0.000299,7]
[328754342,1717768247131,-2610.58475758,0.000299,7]
[328754343,1717768247140,-2610.58475758,0.000299,7]
[328754344,1717768247150,-2610.58475758,0.000299,7]
[328754345,1717768247159,-2610.58475758,0.000299,7]
[328754346,1717768247169,-2610.58475758,0.000299,7]
[328754347,1717768247180,-2610.58475758,0.000299,7]
[328754348,1717768247189,-2610.58475758,0.000299,7]
[328754349,1717768247200,-2610.58475758,0.000299,7]
[328754350,1717768247210,-2610.58475758,0.000299,7]
[328754351,1717768247221,-2610.58475758,0.000299,7]
[328754352,1717768247231,-2610.58475758,0.000299,7]
[328754353,1717768247242,-2610.58475758,0.000299,7]
[328754354,1717768247252,-2610.58475758,0.000299,7]
[328754355,1717768247261,-167.69136997,0.000299,2]
[328754356,1717768247271,-2611.08,0.000299,7]
[328754357,1717768247280,-2189.55083868,0.000299,2]
[328754358,1717768247290,-330.5082725,0.000299,7]
[328754359,1717768247299,-330.5082725,0.000299,7]
[328754360,1717768247309,-330.5082725,0.000299,7]
[328754361,1717768247318,-330.5082725,0.000299,7]
[328754362,1717768247328,-330.5082725,0.000299,7]
[328754363,1717768247337,-330.5082725,0.000299,7]
[328754364,1717768247347,-330.5082725,0.000299,7]
[328754365,1717768247357,-330.5082725,0.000299,7]
[328754366,1717768247367,-330.5082725,0.000299,7]
[328754367,1717768247376,-330.5082725,0.000299,7]
[328754368,1717768247385,-330.5082725,0.000299,7]
[328754369,1717768247394,-330.5082725,0.000299,7]
[328754370,1717768247404,-330.5082725,0.000299,7]
[328754371,1717768247414,-330.5082725,0.000299,7]
[328754372,1717768247423,-330.5082725,0.000299,7]
[328754373,1717768247433,-330.5082725,0.000299,7]
[328754374,1717768247442,-330.5082725,0.000299,7]
[328754375,1717768247452,-330.5082725,0.000299,7]
[328754376,1717768247461,-330.5082725,0.000299,7]
[328754377,1717768247472,-331.0,0.000299,7]
[328754378,1717768247483,-1322.10808999,0.000299,7]
[328754379,1717768247493,-1322.10808999,0.000299,7]
[328754380,1717768247504,-1322.10808999,0.000299,7]
[328754381,1717768247515,-1322.10808999,0.000299,7]
[328754382,1717768247526,-1322.10808999,0.000299,7]
[328754383,1717768247538,-1322.10808999,0.000299,7]
[328754384,1717768247549,-1322.10808999,0.000299,7]
[328754385,1717768247560,-1322.10808999,0.000299,7]
[328754386,1717768247571,-1322.10808999,0.000299,7]
[328754387,1717768247581,-1322.10808999,0.000299,7]
[328754388,1717768247592,-1322.10808999,0.000299,7]
[328754389,1717768247604,-1322.10808999,0.000299,7]
[328754390,1717768247615,-1322.10808999,0.000299,7]
[328754391,1717768247625,-1322.10808999,0.000299,7]
[328754392,1717768247635,-1322.10808999,0.000299,7]
[328754393,1717768247646,-1322.10808999,0.000299,7]
[328754394,1717768247657,-1322.10808999,0.000299,7]
[328754395,1717768247668,-1322.10808999,0.000299,7]
[328754396,1717768247679,-1322.10808999,0.000299,7]
[328754397,1717768247691,-1322.6,0.000299,7]
[328754398,1717768247702,-174.31197829,0.000299,2]
[328754399,1717768247716,-798.72077273,0.000299,2]
[328754400,1717768247733,-301.54937477,0.000299,2]
[328754401,1717768247744,-423.88568654,0.000299,2]
[328754402,1717768247756,-13388.61509293,0.000299,2]
[328754403,1717768247770,-1008.70546374,0.00029903,3]
[328754404,1717768247781,-189.27280631,0.00029924,2]
[328754405,1717768247792,-152.88286152,0.00029936,2]
[328754406,1717768247804,-152.88286152,0.00029946,2]
[328754407,1717768247815,-189.27280631,0.00029949,2]
[328754408,1717768247827,-500.0,0.0002997,2]
[328754409,1717768247837,-500.0,0.0002997,2]
[328754410,1717768247848,-500.0,0.0002997,2]
[328754411,1717768247860,-500.0,0.0002997,2]
[328754412,1717768247871,-268.0,0.0002997,15]
[328754413,1717768247882,-268.0,0.0002997,15]
[328754414,1717768247894,-150.5,0.0002997,15]
[328754415,1717768247905,-150.5,0.0002997,15]
[328754416,1717768247917,-150.5,0.0002998,15]
[328754417,1717768247927,-268.0,0.0002998,15]
[328754418,1717768247938,-268.0,0.0002998,15]
[328754419,1717768247949,-268.0,0.0002998,15]
[328754420,1717768247960,-272.6,0.0002998,15]
[328754421,1717768247981,-150.5,0.0002998,15]
[328754422,1717768247992,-155.78,0.0002998,15]
[328754423,1717768248006,-150.99802264,0.00029984,2]
[328754424,1717768248019,-150.5,0.0002999,15]
[328754425,1717768248031,-268.0,0.0002999,15]
[328754426,1717768248042,-268.0,0.0002999,15]
[328754427,1717768248057,-268.0,0.0002999,15]
[328754428,1717768248067,-268.0,0.0002999,15]
[328754429,1717768248078,-150.5,0.0002999,15]
[328754430,1717768248091,-150.5,0.0002999,15]
[328754431,1717768248103,-156.206731,0.0002999,2]
[328754432,1717768248114,-500.0,0.00029995,4]
[328754433,1717768248124,-500.0,0.00029996,4]
[328754434,1717768248135,-500.0,0.00029996,4]
[328754435,1717768248145,-500.0,0.00029996,4]
[328754436,1717768248156,-500.0,0.00029996,4]
[328754437,1717768248166,-500.0,0.00029996,4]
[328754438,1717768248176,-500.0,0.00029996,4]
[328754439,1717768248187,-500.0,0.00029996,4]
[328754440,1717768248198,-500.0,0.00029996,4]
[328754441,1717768248208,-500.0,0.00029996,4]
[328754442,1717768248224,-500.0,0.00029996,4]
[328754443,1717768248234,-500.0,0.00029996,4]
[328754444,1717768248244,-500.0,0.00029996,4]
[328754445,1717768248254,-500.0,0.00029996,4]
[328754446,1717768248264,-500.0,0.00029996,4]
[328754447,1717768248275,-262.67047836,0.00029996,4]
[328754448,1717768248285,-500.0,0.00029996,4]
[328754449,1717768248296,-500.0,0.00029996,4]
[328754450,1717768248306,-500.0,0.00029996,4]
[328754451,1717768248317,-500.0,0.00029996,4]
[328754452,1717768248327,-500.0,0.00029996,4]
[328754453,1717768248336,-500.0,0.00029996,4]
[328754454,1717768248346,-500.0,0.00029996,4]
[328754455,1717768248356,-500.0,0.00029996,4]
[328754456,1717768248366,-500.0,0.00029996,4]
[328754457,1717768248376,-500.0,0.00029996,4]
[328754458,1717768248387,-500.0,0.00029996,4]
[328754459,1717768248396,-512.75575531,0.00029996,4]
[328754460,1717768248406,-500.0,0.00029996,4]
[328754461,1717768248417,-500.0,0.00029996,4]
[328754462,1717768248427,-508.21652546,0.00029996,4]
[328754463,1717768248437,-500.0,0.00029996,4]
[328754464,1717768248448,-500.0,0.00029996,4]
[328754465,1717768248459,-500.0,0.00029996,4]
[328754466,1717768248473,-496.6653528,0.00029996,4]
[328754467,1717768248483,-500.0,0.00029996,4]
[328754468,1717768248493,-511.86235339,0.00029996,4]
[328754469,1717768248503,-508.68089936,0.00029996,4]
[328754470,1717768248513,-500.0,0.00029996,4]
[328754471,1717768248524,-568.86,0.00029996,4]
[328754472,1717768248533,-500.0,0.00029996,4]
[328754473,1717768248544,-500.0,0.00029996,4]
[328754474,1717768248554,-504.03873023,0.00029996,4]
[328754475,1717768248564,-523.18384278,0.00029996,4]
[328754476,1717768248575,-500.0,0.00029996,4]
[328754477,1717768248585,-500.0,0.00029996,4]
[328754478,1717768248595,-500.0,0.00029996,4]
[328754479,1717768248605,-500.0,0.00029996,4]
[328754480,1717768248615,-500.0,0.00029996,4]
[328754481,1717768248625,-500.0,0.00029996,4]
[328754482,1717768248635,-522.42376548,0.00029996,4]
[328754483,1717768248646,-500.0,0.00029996,4]
[328754484,1717768248656,-531.2938194,0.00029996,4]
[328754485,1717768248666,-500.0,0.00029996,4]
[328754486,1717768248676,-509.65576993,0.00029996,4]
[328754487,1717768248686,-500.0,0.00029996,4]
[328754488,1717768248696,-500.0,0.00029996,4]
[328754489,1717768248707,-500.0,0.00029996,4]
[328754490,1717768248719,-500.0,0.00029996,4]
[328754491,1717768248729,-500.0,0.00029996,4]
[328754492,1717768248739,-500.0,0.00029996,4]
[328754493,1717768248750,-500.0,0.00029996,4]
[328754494,1717768248760,-500.0,0.00029996,4]
[328754495,1717768248771,-500.0,0.00029996,4]
[328754496,1717768248781,-500.0,0.00029996,4]
[328754497,1717768248791,-330.53341586,0.00029996,4]
[328754498,1717768248801,-500.0,0.00029996,4]
[328754499,1717768248811,-313.85042564,0.00029996,4]
[328754500,1717768248821,-500.0,0.00029996,4]
[328754501,1717768248831,-304.03368946,0.00029996,4]
[328754502,1717768248841,-500.0,0.00029996,4]